[Event "*** Titled Tuesday Blitz"]
[Site "Chess.com"]
[Date "2021.02.09"]
[Round "4"]
[White "PSvidler"]
[Black "Alexchess1984"]
[Result "1/2-1/2"]
[WhiteElo "2881"]
[BlackElo "2704"]
[TimeControl "180+1"]
[EndTime "10:39:25 PST"]
[Termination "Game drawn by agreement"]

1. e4 {[%clk 0:03:00.9]} 1... c5 {[%clk 0:02:58.9]} 2. Nf3 {[%clk 0:02:59.3]}
2... Nc6 {[%clk 0:02:58.8]} 3. Bb5 {[%clk 0:02:58]} 3... g6 {[%clk 0:02:52.2]}
4. Bxc6 {[%clk 0:02:55.9]} 4... dxc6 {[%clk 0:02:51.7]} 5. d3 {[%clk 0:02:54.5]}
5... Bg7 {[%clk 0:02:50.8]} 6. h3 {[%clk 0:02:53.6]} 6... Nh6 {[%clk 0:02:39.2]}
7. a3 {[%clk 0:02:50.6]} 7... b6 {[%clk 0:02:34.5]} 8. Nc3 {[%clk 0:02:45.9]}
8... f6 {[%clk 0:02:32.7]} 9. b4 {[%clk 0:02:33.2]} 9... cxb4 {[%clk 0:02:30.1]}
10. axb4 {[%clk 0:02:32.9]} 10... Nf7 {[%clk 0:02:28.9]} 11. O-O {[%clk
0:02:29.3]} 11... O-O {[%clk 0:02:27.6]} 12. Bd2 {[%clk 0:02:24.2]} 12... f5
{[%clk 0:02:24.9]} 13. Ra3 {[%clk 0:02:20.3]} 13... a5 {[%clk 0:02:08.3]} 14.
bxa5 {[%clk 0:02:08.7]} 14... bxa5 {[%clk 0:01:59.7]} 15. Re1 {[%clk 0:02:05.1]}
15... Nd6 {[%clk 0:01:57.6]} 16. e5 {[%clk 0:01:50.5]} 16... Nb5 {[%clk
0:01:57.4]} 17. Ra4 {[%clk 0:01:50.4]} 17... h6 {[%clk 0:01:44.5]} 18. Qb1
{[%clk 0:01:46.5]} 18... Kh7 {[%clk 0:01:37.4]} 19. Nxb5 {[%clk 0:01:37.3]}
19... cxb5 {[%clk 0:01:37]} 20. Rh4 {[%clk 0:01:37.9]} 20... b4 {[%clk
0:01:29.9]} 21. Bxh6 {[%clk 0:01:35.9]} 21... Bxh6 {[%clk 0:01:28.3]} 22. e6
{[%clk 0:01:14]} 22... Ra6 {[%clk 0:01:00.9]} 23. Qc1 {[%clk 0:01:07]} 23... f4
{[%clk 0:01:00.7]} 24. Ng5+ {[%clk 0:01:06.1]} 24... Kg7 {[%clk 0:01:00.3]} 25.
Qb2+ {[%clk 0:01:02.4]} 25... Rf6 {[%clk 0:01:00.3]} 26. Nf7 {[%clk 0:01:02.2]}
26... Qc7 {[%clk 0:00:52]} 27. Nxh6 {[%clk 0:00:53.7]} 27... Rxe6 {[%clk
0:00:47.5]} 28. Rxe6 {[%clk 0:00:47.8]} 28... Bxe6 {[%clk 0:00:48.4]} 29. Ng4
{[%clk 0:00:44.4]} 29... Bxg4 {[%clk 0:00:40.3]} 30. Rxg4 {[%clk 0:00:40.3]}
30... Qc3 {[%clk 0:00:40]} 31. Qa2 {[%clk 0:00:37.3]} 31... Qe1+ {[%clk
0:00:36.3]} 32. Kh2 {[%clk 0:00:37.4]} 32... Qxf2 {[%clk 0:00:36.8]} 33. Qxa5
{[%clk 0:00:37.2]} 33... Qd4 {[%clk 0:00:30.2]} 34. Qc7 {[%clk 0:00:35.5]} 34...
Qd6 {[%clk 0:00:27.6]} 35. Qxd6 {[%clk 0:00:32.1]} 35... exd6 {[%clk 0:00:27.8]}
36. Rg5 {[%clk 0:00:32.3]} 36... f3 {[%clk 0:00:19.5]} 37. Kg1 {[%clk
0:00:28.2]} 37... fxg2 {[%clk 0:00:17.9]} 38. Kxg2 {[%clk 0:00:27.7]} 38... Kf7
{[%clk 0:00:17.2]} 39. Rb5 {[%clk 0:00:27.2]} 39... Rf4 {[%clk 0:00:17.1]} 40.
Kg3 {[%clk 0:00:26.9]} 40... Rd4 {[%clk 0:00:17.1]} 41. h4 {[%clk 0:00:26.9]}
41... Kf6 {[%clk 0:00:16.8]} 42. h5 {[%clk 0:00:26.8]} 42... gxh5 {[%clk
0:00:16.8]} 43. Rxh5 {[%clk 0:00:25.4]} 43... b3 {[%clk 0:00:16.9]} 44. cxb3
{[%clk 0:00:25.6]} 44... Rxd3+ {[%clk 0:00:16.9]} 45. Kf4 {[%clk 0:00:26.3]}
45... Rxb3 {[%clk 0:00:17.1]} 46. Rh6+ {[%clk 0:00:26.6]} 1/2-1/2

[Event "*** Titled Tuesday Blitz"]
[Site "Chess.com"]
[Date "2021.02.09"]
[Round "4"]
[White "juancruzarias"]
[Black "onnoelgersma"]
[Result "1-0"]
[WhiteElo "2630"]
[BlackElo "2470"]
[TimeControl "180+1"]
[EndTime "10:39:27 PST"]
[Termination "juancruzarias won by resignation"]

1. e4 {[%clk 0:02:53.2]} 1... c5 {[%clk 0:03:00]} 2. Nc3 {[%clk 0:02:43]} 2...
e6 {[%clk 0:02:59.9]} 3. g3 {[%clk 0:02:42.1]} 3... Nc6 {[%clk 0:02:56.1]} 4.
Bg2 {[%clk 0:02:41.2]} 4... g6 {[%clk 0:02:56.5]} 5. d3 {[%clk 0:02:40.8]} 5...
Bg7 {[%clk 0:02:56.6]} 6. Be3 {[%clk 0:02:40.6]} 6... d6 {[%clk 0:02:56.9]} 7.
Qd2 {[%clk 0:02:38]} 7... a6 {[%clk 0:02:55]} 8. Nf3 {[%clk 0:02:27.9]} 8... Rb8
{[%clk 0:02:53.2]} 9. d4 {[%clk 0:02:18.6]} 9... cxd4 {[%clk 0:02:31.1]} 10.
Nxd4 {[%clk 0:02:11.1]} 10... Ne5 {[%clk 0:02:30.3]} 11. Qe2 {[%clk 0:02:04.1]}
11... Ne7 {[%clk 0:02:27.1]} 12. f4 {[%clk 0:02:01.7]} 12... N5c6 {[%clk
0:02:26.4]} 13. Nb3 {[%clk 0:01:54.2]} 13... O-O {[%clk 0:02:14.5]} 14. O-O
{[%clk 0:01:53.8]} 14... d5 {[%clk 0:02:12.3]} 15. Rad1 {[%clk 0:01:49.8]} 15...
Qc7 {[%clk 0:01:48.2]} 16. exd5 {[%clk 0:01:37.3]} 16... exd5 {[%clk 0:01:47.4]}
17. Nxd5 {[%clk 0:01:34.9]} 17... Nxd5 {[%clk 0:01:46.6]} 18. Bxd5 {[%clk
0:01:33.8]} 18... Re8 {[%clk 0:01:47.1]} 19. Qf2 {[%clk 0:01:20.8]} 19... Bg4
{[%clk 0:01:44.3]} 20. Rd2 {[%clk 0:01:14]} 20... Bxb2 {[%clk 0:01:32.6]} 21.
Bb6 {[%clk 0:01:00.8]} 21... Qc8 {[%clk 0:01:23.4]} 22. c4 {[%clk 0:00:57.8]}
22... Bg7 {[%clk 0:01:17.5]} 23. Nc5 {[%clk 0:00:27.4]} 23... Ne7 {[%clk
0:00:42.9]} 24. Bg2 {[%clk 0:00:20.3]} 24... Nc6 {[%clk 0:00:36.6]} 25. Ne4
{[%clk 0:00:19.8]} 25... Qe6 {[%clk 0:00:26.4]} 26. Ng5 {[%clk 0:00:17.8]} 26...
Qe7 {[%clk 0:00:23.4]} 27. Bd5 {[%clk 0:00:16.7]} 27... Rf8 {[%clk 0:00:21.3]}
28. Bc5 {[%clk 0:00:16.6]} 28... Qc7 {[%clk 0:00:21.2]} 29. Bxf8 {[%clk
0:00:16.9]} 29... Rxf8 {[%clk 0:00:22.1]} 30. Re1 {[%clk 0:00:14.9]} 30... Bc3
{[%clk 0:00:20.4]} 31. Qe3 {[%clk 0:00:13.6]} 31... Bxd2 {[%clk 0:00:20]} 32.
Qxd2 {[%clk 0:00:14.5]} 32... Ne7 {[%clk 0:00:17.5]} 33. Qf2 {[%clk 0:00:13.5]}
33... Nxd5 {[%clk 0:00:16.4]} 34. cxd5 {[%clk 0:00:14.4]} 34... Qd6 {[%clk
0:00:16.7]} 35. Qd4 {[%clk 0:00:14.5]} 35... h6 {[%clk 0:00:16.2]} 36. Ne4
{[%clk 0:00:14.8]} 36... Re8 {[%clk 0:00:10.2]} 37. Nf6+ {[%clk 0:00:12.4]}
37... Kf8 {[%clk 0:00:08.5]} 38. Rxe8+ {[%clk 0:00:12.2]} 1-0

[Event "*** Titled Tuesday Blitz"]
[Site "Chess.com"]
[Date "2021.02.09"]
[Round "4"]
[White "AustrianFalcon"]
[Black "kikydu96"]
[Result "1-0"]
[WhiteElo "2446"]
[BlackElo "2595"]
[TimeControl "180+1"]
[EndTime "10:39:27 PST"]
[Termination "AustrianFalcon won by resignation"]

1. e4 {[%clk 0:03:00.2]} 1... c5 {[%clk 0:02:59.5]} 2. Nf3 {[%clk 0:03:00]} 2...
d6 {[%clk 0:02:59.4]} 3. d4 {[%clk 0:03:00.2]} 3... cxd4 {[%clk 0:03:00.3]} 4.
Nxd4 {[%clk 0:03:01]} 4... Nf6 {[%clk 0:03:00.6]} 5. Nc3 {[%clk 0:03:01.7]} 5...
Nc6 {[%clk 0:03:01]} 6. Bg5 {[%clk 0:03:00.7]} 6... e6 {[%clk 0:03:01.1]} 7. Qd2
{[%clk 0:03:00.8]} 7... Be7 {[%clk 0:03:01.4]} 8. O-O-O {[%clk 0:02:58.1]} 8...
Nxd4 {[%clk 0:03:01.5]} 9. Qxd4 {[%clk 0:02:58]} 9... O-O {[%clk 0:03:02.2]} 10.
h4 {[%clk 0:02:48.7]} 10... h6 {[%clk 0:03:00.6]} 11. f4 {[%clk 0:02:20.5]}
11... hxg5 {[%clk 0:02:58.6]} 12. hxg5 {[%clk 0:02:16]} 12... Ng4 {[%clk
0:02:59]} 13. Be2 {[%clk 0:01:44.3]} 13... e5 {[%clk 0:02:57.9]} 14. Qg1 {[%clk
0:01:37]} 14... exf4 {[%clk 0:02:56.9]} 15. Bxg4 {[%clk 0:01:35.5]} 15... Bxg5
{[%clk 0:02:35.3]} 16. Bf3 {[%clk 0:01:18.3]} 16... Be6 {[%clk 0:02:22.5]} 17.
Qh2 {[%clk 0:01:08.9]} 17... Bh6 {[%clk 0:02:20.6]} 18. Nd5 {[%clk 0:01:07.5]}
18... Re8 {[%clk 0:02:08.9]} 19. Kb1 {[%clk 0:01:06.5]} 19... Rc8 {[%clk
0:02:06.1]} 20. g3 {[%clk 0:00:59.5]} 20... Bxd5 {[%clk 0:01:31.9]} 21. Rxd5
{[%clk 0:00:54.2]} 21... Qf6 {[%clk 0:01:10.9]} 22. Rf5 {[%clk 0:00:51.9]} 22...
Qd4 {[%clk 0:00:55.8]} 23. g4 {[%clk 0:00:40.4]} 23... f6 {[%clk 0:00:25.2]} 24.
Rd5 {[%clk 0:00:34.9]} 24... Qe3 {[%clk 0:00:23.1]} 25. Rd3 {[%clk 0:00:34]}
25... Qc5 {[%clk 0:00:21.7]} 26. g5 {[%clk 0:00:26.6]} 26... fxg5 {[%clk
0:00:19.2]} 27. e5 {[%clk 0:00:23.4]} 27... Rxe5 {[%clk 0:00:16.9]} 28. Rc3
{[%clk 0:00:17.9]} 28... Qxc3 {[%clk 0:00:10.3]} 29. bxc3 {[%clk 0:00:18.8]}
29... Rxc3 {[%clk 0:00:09.1]} 30. Qg2 {[%clk 0:00:18.6]} 30... Rb5+ {[%clk
0:00:07.3]} 31. Ka1 {[%clk 0:00:17.2]} 31... Rbc5 {[%clk 0:00:06.6]} 32. Bd5+
{[%clk 0:00:17.2]} 32... Kf8 {[%clk 0:00:07]} 33. Qe4 {[%clk 0:00:16.2]} 33...
Rxc2 {[%clk 0:00:06.3]} 34. Qe6 {[%clk 0:00:15.4]} 34... Rc7 {[%clk 0:00:03.6]}
35. Qf5+ {[%clk 0:00:15.1]} 35... Ke8 {[%clk 0:00:02.1]} 36. Re1+ {[%clk
0:00:15.6]} 36... Kd8 {[%clk 0:00:01.8]} 37. Qf8+ {[%clk 0:00:14.3]} 1-0

[Event "*** Titled Tuesday Blitz"]
[Site "Chess.com"]
[Date "2021.02.09"]
[Round "4"]
[White "Susal_De_Silva"]
[Black "noblerone"]
[Result "1-0"]
[WhiteElo "2613"]
[BlackElo "2416"]
[TimeControl "180+1"]
[EndTime "10:39:27 PST"]
[Termination "Susal_De_Silva won by resignation"]

1. e4 {[%clk 0:03:00.9]} 1... c5 {[%clk 0:02:58.4]} 2. Nf3 {[%clk 0:03:01.3]}
2... e6 {[%clk 0:02:58.8]} 3. d4 {[%clk 0:03:01.2]} 3... cxd4 {[%clk 0:02:59.4]}
4. Nxd4 {[%clk 0:03:01.5]} 4... Qb6 {[%clk 0:03:00]} 5. Be2 {[%clk 0:03:01.2]}
5... Bc5 {[%clk 0:02:58.8]} 6. c3 {[%clk 0:02:56.1]} 6... Nc6 {[%clk 0:02:29.3]}
7. O-O {[%clk 0:02:54.1]} 7... Nxd4 {[%clk 0:02:25.7]} 8. cxd4 {[%clk 0:02:55]}
8... Bxd4 {[%clk 0:02:26.6]} 9. Nd2 {[%clk 0:02:55]} 9... Bc5 {[%clk 0:02:12.6]}
10. Nc4 {[%clk 0:02:52.1]} 10... Qc7 {[%clk 0:02:10.8]} 11. Bg5 {[%clk
0:02:46.3]} 11... f6 {[%clk 0:02:08]} 12. Bh4 {[%clk 0:02:45.9]} 12... Ne7
{[%clk 0:02:06.7]} 13. Rc1 {[%clk 0:02:43.7]} 13... O-O {[%clk 0:01:56.6]} 14.
Bg3 {[%clk 0:02:43.1]} 14... Qd8 {[%clk 0:01:43.3]} 15. Nd6 {[%clk 0:02:40.6]}
15... Bxd6 {[%clk 0:01:39.9]} 16. Bxd6 {[%clk 0:02:41.5]} 16... Rf7 {[%clk
0:01:36.8]} 17. Bf3 {[%clk 0:02:39.3]} 17... Nc6 {[%clk 0:01:34]} 18. Qd2 {[%clk
0:02:34.7]} 18... b6 {[%clk 0:01:27.4]} 19. b4 {[%clk 0:02:29.3]} 19... Bb7
{[%clk 0:01:27.3]} 20. b5 {[%clk 0:02:29.7]} 20... Ne5 {[%clk 0:01:24.1]} 21.
Bxe5 {[%clk 0:02:30]} 21... fxe5 {[%clk 0:01:25]} 22. Rfd1 {[%clk 0:02:30.7]}
22... Qf6 {[%clk 0:01:13.3]} 23. Rc7 {[%clk 0:02:26.4]} 23... Bc8 {[%clk
0:01:02.9]} 24. Rdc1 {[%clk 0:02:17]} 24... Rf8 {[%clk 0:01:03.2]} 25. Qd6
{[%clk 0:02:15.5]} 25... h6 {[%clk 0:00:59.5]} 26. h3 {[%clk 0:02:13.7]} 26...
Kh7 {[%clk 0:00:51.7]} 27. R1c2 {[%clk 0:02:13.4]} 27... a6 {[%clk 0:00:37.9]}
28. Qxb6 {[%clk 0:02:07.1]} 28... axb5 {[%clk 0:00:37.1]} 29. Qxb5 {[%clk
0:02:06.5]} 29... d6 {[%clk 0:00:20.5]} 30. Qb4 {[%clk 0:01:59.7]} 30... Ba6
{[%clk 0:00:15.6]} 31. Qxd6 {[%clk 0:01:56.1]} 31... Bb5 {[%clk 0:00:14.7]} 32.
Qc5 {[%clk 0:01:41.7]} 32... Ba4 {[%clk 0:00:14.3]} 33. Rb2 {[%clk 0:01:39.4]}
33... Rad8 {[%clk 0:00:11.2]} 34. Rbb7 {[%clk 0:01:38.1]} 34... Rg8 {[%clk
0:00:10.9]} 35. Rf7 {[%clk 0:01:27.7]} 35... Qg5 {[%clk 0:00:09.3]} 36. Kh2
{[%clk 0:01:26]} 36... Bd1 {[%clk 0:00:07.7]} 37. Bxd1 {[%clk 0:01:14]} 37...
Rxd1 {[%clk 0:00:08.6]} 38. a4 {[%clk 0:01:03.8]} 38... Rd2 {[%clk 0:00:08.5]}
39. a5 {[%clk 0:01:00.7]} 39... Ra2 {[%clk 0:00:06.2]} 40. Qb6 {[%clk
0:00:57.6]} 40... Qd2 {[%clk 0:00:02.9]} 41. a6 {[%clk 0:00:55.3]} 41... Ra1
{[%clk 0:00:03.1]} 42. Qxe6 {[%clk 0:00:51.1]} 42... Qg5 {[%clk 0:00:02.1]} 43.
Qf5+ {[%clk 0:00:51.2]} 43... Qxf5 {[%clk 0:00:02.4]} 44. Rxf5 {[%clk
0:00:51.6]} 44... Ra8 {[%clk 0:00:02.3]} 45. Rff7 {[%clk 0:00:51.3]} 45... R1xa6
{[%clk 0:00:03.2]} 46. Rxg7+ {[%clk 0:00:51.3]} 46... Kh8 {[%clk 0:00:04.1]} 47.
Rh7+ {[%clk 0:00:49.2]} 47... Kg8 {[%clk 0:00:04.6]} 48. Rhe7 {[%clk 0:00:48.9]}
48... Kh8 {[%clk 0:00:04.8]} 49. Rxe5 {[%clk 0:00:48.8]} 49... Ra5 {[%clk
0:00:05]} 50. Rxa5 {[%clk 0:00:48.6]} 50... Rxa5 {[%clk 0:00:05.9]} 51. f3
{[%clk 0:00:49.3]} 1-0

[Event "*** Titled Tuesday Blitz"]
[Site "Chess.com"]
[Date "2021.02.09"]
[Round "4"]
[White "Darius321"]
[Black "niki_2003"]
[Result "1-0"]
[WhiteElo "2270"]
[BlackElo "2053"]
[TimeControl "180+1"]
[EndTime "10:39:27 PST"]
[Termination "Darius321 won by checkmate"]

1. e4 {[%clk 0:03:00.9]} 1... c5 {[%clk 0:02:59.1]} 2. Nf3 {[%clk 0:03:00.3]}
2... d6 {[%clk 0:02:58.4]} 3. Bb5+ {[%clk 0:02:59.4]} 3... Bd7 {[%clk
0:02:57.5]} 4. Bxd7+ {[%clk 0:02:59.4]} 4... Qxd7 {[%clk 0:02:56.4]} 5. O-O
{[%clk 0:03:00.3]} 5... Nf6 {[%clk 0:02:55.7]} 6. Re1 {[%clk 0:03:00.9]} 6...
Nc6 {[%clk 0:02:55.4]} 7. c3 {[%clk 0:03:01.1]} 7... e5 {[%clk 0:02:54.8]} 8. d4
{[%clk 0:03:01.1]} 8... Be7 {[%clk 0:02:50.8]} 9. Bg5 {[%clk 0:02:57.4]} 9...
cxd4 {[%clk 0:02:46.5]} 10. cxd4 {[%clk 0:02:56.9]} 10... Rd8 {[%clk 0:02:39.7]}
11. Nc3 {[%clk 0:02:52.2]} 11... O-O {[%clk 0:02:36]} 12. h3 {[%clk 0:02:34.1]}
12... h6 {[%clk 0:02:16.1]} 13. Be3 {[%clk 0:02:18.9]} 13... a6 {[%clk
0:02:04.7]} 14. Qd2 {[%clk 0:02:04.7]} 14... Na5 {[%clk 0:01:54.9]} 15. dxe5
{[%clk 0:01:16.3]} 15... Nc4 {[%clk 0:01:47.5]} 16. Qe2 {[%clk 0:00:58.6]} 16...
Nxe5 {[%clk 0:01:41]} 17. Nd4 {[%clk 0:00:58.3]} 17... b5 {[%clk 0:01:31.8]} 18.
Nf5 {[%clk 0:00:53.4]} 18... Rfe8 {[%clk 0:01:06.8]} 19. Rad1 {[%clk 0:00:45.2]}
19... b4 {[%clk 0:00:55.4]} 20. Nxe7+ {[%clk 0:00:27.3]} 20... Qxe7 {[%clk
0:00:43.2]} 21. Nd5 {[%clk 0:00:28.2]} 21... Nxd5 {[%clk 0:00:41.9]} 22. Rxd5
{[%clk 0:00:28.8]} 22... Qb7 {[%clk 0:00:40.2]} 23. Red1 {[%clk 0:00:26.3]}
23... Ng6 {[%clk 0:00:23.1]} 24. Qd3 {[%clk 0:00:25.3]} 24... Ne5 {[%clk
0:00:20.5]} 25. Qd4 {[%clk 0:00:23.1]} 25... Nc6 {[%clk 0:00:19.5]} 26. Qd2
{[%clk 0:00:20.6]} 26... Rxe4 {[%clk 0:00:18.7]} 27. Rxd6 {[%clk 0:00:17.2]}
27... Ree8 {[%clk 0:00:18.7]} 28. Qc2 {[%clk 0:00:10.2]} 28... Rxd6 {[%clk
0:00:14.4]} 29. Rxd6 {[%clk 0:00:11.1]} 29... Rc8 {[%clk 0:00:14.7]} 30. Qe4
{[%clk 0:00:09.8]} 30... a5 {[%clk 0:00:13.8]} 31. Qg4 {[%clk 0:00:07.1]} 31...
Kh8 {[%clk 0:00:12.3]} 32. Bxh6 {[%clk 0:00:06.3]} 32... f6 {[%clk 0:00:10.6]}
33. Rd7 {[%clk 0:00:04.7]} 33... Ne5 {[%clk 0:00:07.1]} 34. Qxg7# {[%clk
0:00:03.6]} 1-0

[Event "*** Titled Tuesday Blitz"]
[Site "Chess.com"]
[Date "2021.02.09"]
[Round "4"]
[White "vinniethepooh"]
[Black "vladimirdamjanovic"]
[Result "1-0"]
[WhiteElo "2749"]
[BlackElo "2516"]
[TimeControl "180+1"]
[EndTime "10:39:28 PST"]
[Termination "vinniethepooh won on time"]

1. d4 {[%clk 0:03:00.9]} 1... Nc6 {[%clk 0:02:59.8]} 2. c4 {[%clk 0:03:00.3]}
2... e5 {[%clk 0:02:58.8]} 3. d5 {[%clk 0:02:59.2]} 3... Bb4+ {[%clk 0:02:59.4]}
4. Bd2 {[%clk 0:02:54.7]} 4... Bxd2+ {[%clk 0:02:59.2]} 5. Qxd2 {[%clk
0:02:55.6]} 5... Nce7 {[%clk 0:02:59.3]} 6. Nc3 {[%clk 0:02:52.5]} 6... d6
{[%clk 0:02:59.4]} 7. h4 {[%clk 0:02:52]} 7... Nf6 {[%clk 0:02:47.2]} 8. g3
{[%clk 0:02:41.9]} 8... O-O {[%clk 0:02:31.6]} 9. Bg2 {[%clk 0:02:39.1]} 9...
Bg4 {[%clk 0:01:56.2]} 10. f3 {[%clk 0:02:36.2]} 10... Bd7 {[%clk 0:01:51]} 11.
Nh3 {[%clk 0:02:30.5]} 11... Nf5 {[%clk 0:01:22.1]} 12. Kf2 {[%clk 0:01:59.9]}
12... Nh5 {[%clk 0:00:29.4]} 13. Ne4 {[%clk 0:01:59.4]} 13... Nhxg3 {[%clk
0:00:25.8]} 14. Nxg3 {[%clk 0:01:44.9]} 14... Qxh4 {[%clk 0:00:24.9]} 15. Qg5
{[%clk 0:00:29.9]} 15... Qd4+ {[%clk 0:00:24.6]} 16. Ke1 {[%clk 0:00:05.7]}
16... Nxg3 {[%clk 0:00:06.8]} 17. Qxg3 {[%clk 0:00:05.7]} 17... Qxb2 {[%clk
0:00:07.5]} 18. Rd1 {[%clk 0:00:06.1]} 18... Qc3+ {[%clk 0:00:07.2]} 19. Kf1
{[%clk 0:00:06.7]} 19... Qc2 {[%clk 0:00:06.3]} 20. Re1 {[%clk 0:00:06.8]} 20...
Qxc4 {[%clk 0:00:06.2]} 21. Ng5 {[%clk 0:00:07.2]} 21... f6 {[%clk 0:00:02.3]}
22. Nxh7 {[%clk 0:00:06.8]} 22... Rf7 {[%clk 0:00:02.9]} 23. Qh2 {[%clk
0:00:05.5]} 23... Qxd5 {[%clk 0:00:01.7]} 24. Ng5 {[%clk 0:00:05.7]} 24... Kf8
{[%clk 0:00:01.5]} 25. Qh8+ {[%clk 0:00:05.6]} 25... Ke7 {[%clk 0:00:02.1]} 26.
Qxa8 {[%clk 0:00:04.5]} 26... fxg5 {[%clk 0:00:02.7]} 27. Qxa7 {[%clk
0:00:04.8]} 27... g4 {[%clk 0:00:02.4]} 28. Qe3 {[%clk 0:00:05.3]} 28... Bc6
{[%clk 0:00:01.4]} 29. Qg5+ {[%clk 0:00:05.1]} 29... Ke6 {[%clk 0:00:01.6]} 30.
Qxg4+ {[%clk 0:00:05.6]} 30... Ke7 {[%clk 0:00:01.4]} 31. Qg5+ {[%clk 0:00:06]}
31... Kd7 {[%clk 0:00:01.8]} 32. Bh3+ {[%clk 0:00:06.3]} 32... Ke8 {[%clk
0:00:01.5]} 33. Bg4 {[%clk 0:00:05]} 1-0

[Event "*** Titled Tuesday Blitz"]
[Site "Chess.com"]
[Date "2021.02.09"]
[Round "4"]
[White "SergeiAza"]
[Black "crazy_but_lazy"]
[Result "1-0"]
[WhiteElo "2757"]
[BlackElo "2517"]
[TimeControl "180+1"]
[EndTime "10:39:29 PST"]
[Termination "SergeiAza won by checkmate"]

1. e4 {[%clk 0:03:00.9]} 1... e6 {[%clk 0:02:59.5]} 2. d4 {[%clk 0:03:00]} 2...
d5 {[%clk 0:03:00]} 3. Nd2 {[%clk 0:03:00.6]} 3... h6 {[%clk 0:02:57.6]} 4. Ngf3
{[%clk 0:02:59.8]} 4... Nf6 {[%clk 0:02:57.1]} 5. e5 {[%clk 0:03:00.2]} 5...
Nfd7 {[%clk 0:02:57.3]} 6. c4 {[%clk 0:03:00.8]} 6... dxc4 {[%clk 0:02:49.7]} 7.
Bxc4 {[%clk 0:03:00.4]} 7... Nb6 {[%clk 0:02:47.8]} 8. Bd3 {[%clk 0:02:44.7]}
8... Bd7 {[%clk 0:02:46.6]} 9. O-O {[%clk 0:02:42.2]} 9... Bc6 {[%clk
0:02:46.6]} 10. Ne4 {[%clk 0:02:41.2]} 10... N8d7 {[%clk 0:02:39]} 11. Qe2
{[%clk 0:02:38.7]} 11... Be7 {[%clk 0:02:31.3]} 12. Bd2 {[%clk 0:02:34.3]} 12...
Bxe4 {[%clk 0:02:09.9]} 13. Qxe4 {[%clk 0:02:29.9]} 13... Nd5 {[%clk 0:02:09.6]}
14. Rfe1 {[%clk 0:02:25.8]} 14... N7b6 {[%clk 0:02:06.9]} 15. Qg4 {[%clk
0:02:19.5]} 15... g5 {[%clk 0:01:39.2]} 16. Qh5 {[%clk 0:02:10.8]} 16... Qd7
{[%clk 0:01:31.8]} 17. Nxg5 {[%clk 0:02:05]} 17... Rf8 {[%clk 0:01:14.7]} 18.
Ne4 {[%clk 0:01:48]} 18... O-O-O {[%clk 0:01:13.4]} 19. a4 {[%clk 0:01:48]}
19... f5 {[%clk 0:01:08.7]} 20. Nc5 {[%clk 0:01:38.3]} 20... Bxc5 {[%clk
0:00:50.3]} 21. dxc5 {[%clk 0:01:39.2]} 21... Nxa4 {[%clk 0:00:39]} 22. Bc2
{[%clk 0:01:26.9]} 22... Nxc5 {[%clk 0:00:36.8]} 23. Rxa7 {[%clk 0:01:26.7]}
23... Nb6 {[%clk 0:00:36.6]} 24. Be3 {[%clk 0:01:21.8]} 24... Qd5 {[%clk
0:00:20.3]} 25. Ra5 {[%clk 0:01:00.6]} 25... f4 {[%clk 0:00:10.6]} 26. Bxc5
{[%clk 0:00:46.5]} 26... Rg8 {[%clk 0:00:03.8]} 27. Be4 {[%clk 0:00:29.4]} 27...
Qd2 {[%clk 0:00:03.7]} 28. Rea1 {[%clk 0:00:21.7]} 28... Rg5 {[%clk 0:00:03.5]}
29. Qf3 {[%clk 0:00:19.2]} 29... Nd5 {[%clk 0:00:02.9]} 30. Ra8+ {[%clk
0:00:17.2]} 30... Kd7 {[%clk 0:00:03.3]} 31. Rxd8+ {[%clk 0:00:17.5]} 31... Kxd8
{[%clk 0:00:04.2]} 32. Rd1 {[%clk 0:00:15.6]} 32... Qa5 {[%clk 0:00:02.2]} 33.
Bxd5 {[%clk 0:00:14.9]} 33... Qxc5 {[%clk 0:00:01.8]} 34. Bxe6+ {[%clk
0:00:14.4]} 34... Ke7 {[%clk 0:00:02.3]} 35. Qxf4 {[%clk 0:00:13.1]} 35... Kxe6
{[%clk 0:00:01.1]} 36. Qf6# {[%clk 0:00:13]} 1-0